fUST/lending_fUST_20260303
["ID","MTS","AMOUNT","RATE_DAILY","PERIOD"]
[407172534,1772467863026,-500.0,0.00013972,2]
[407172535,1772467863036,-500.0,0.00013972,2]
[407172537,1772467863046,-500.0,0.00013972,2]
[407172539,1772467863056,-500.0,0.00013972,2]
[407172541,1772467863065,-500.0,0.00013972,2]
[407172543,1772467863075,-500.0,0.00013972,2]
[407172545,1772467863084,-500.0,0.00013972,2]
[407172547,1772467863094,-500.0,0.00013972,2]
[407172549,1772467863104,-249.59400005,0.00013972,2]
[407172551,1772467863114,-500.0,0.00013972,2]
[407172553,1772467863123,-500.0,0.00013972,2]
[407172555,1772467863134,-500.0,0.00013972,2]
[407172557,1772467863143,-500.0,0.00013972,2]
[407172559,1772467863152,-1376.06,0.00013972,2]
[407172561,1772467863162,-239.34248444,0.00013972,2]
[407176790,1772468184775,10771.25,0.0001,2]
[407176793,1772468712027,896.6,0.0001001,2]
[407176990,1772469032495,-593.0,0.00012239,2]
[407176991,1772469032507,-150.0,0.00012338,2]
[407176992,1772469032520,-218.7752172,0.00012437,2]
[407176993,1772469032532,-200.0,0.0001296,2]
[407176994,1772469032544,-500.0,0.00013246,2]
[407176995,1772469032557,-300.0,0.00013272,2]
[407176996,1772469032569,-1200.0,0.00013272,2]
[407176997,1772469032581,-500.0,0.00013273,2]
[407176998,1772469032593,-500.0,0.00013273,2]
[407176999,1772469032605,-500.0,0.00013273,2]
[407177000,1772469032618,-267.30390184,0.00013273,2]
[407177001,1772469032630,-500.0,0.00013273,2]
[407177002,1772469032643,-4502.40704307,0.00013273,2]
[407177003,1772469032699,-748.93440187,0.00013273,2]
[407177011,1772469039068,-1086.0,0.00013273,2]
[407177759,1772469047065,-1342.57978357,0.00013273,2]
[407177761,1772469047076,-301.10194926,0.00013273,2]
[407177763,1772469047087,-500.0,0.00013273,2]
[407177765,1772469047097,-500.7895009,0.00013273,2]
[407177767,1772469047109,-500.0,0.00013273,2]
[407177769,1772469047118,-278.97559937,0.00013273,2]
[407177771,1772469047127,-500.0,0.00013273,2]
[407177773,1772469047138,-500.0,0.00013273,2]
[407177774,1772469047148,-500.0,0.00013273,2]
[407177776,1772469047158,-800.0,0.000135,2]
[407177778,1772469047168,-1389.76,0.00013561,2]
[407177780,1772469047180,-174.325,0.00013561,2]
[407177782,1772469047193,-2398.4119403,0.00013585,2]
[407177784,1772469047203,-4566.83482643,0.00013598,2]
[407177786,1772469047212,-300.0,0.00013673,2]
[407177788,1772469047221,-403.09042768,0.00013687,2]
[407177790,1772469047231,-250.0,0.0001369,2]
[407177792,1772469047241,-496.47127164,0.0001369,2]
[407177794,1772469047250,-250.0,0.0001369,2]
[407177796,1772469047259,-250.0,0.0001369,2]
[407177798,1772469047268,-250.0,0.0001369,2]
[407177800,1772469047278,-181.08010149,0.0001369,2]
[407177802,1772469047287,-250.0,0.0001369,2]
[407177804,1772469047297,-187.78006525,0.0001369,2]
[407177806,1772469047306,-250.0,0.0001369,2]
[407177810,1772469047316,-194.72792766,0.0001369,2]
[407177814,1772469047325,-250.0,0.0001369,2]
[407177816,1772469047334,-250.0,0.0001369,2]
[407177818,1772469047344,-201.93286099,0.0001369,2]
[407177820,1772469047353,-250.0,0.0001369,2]
[407177821,1772469047363,-250.0,0.0001369,2]
[407177823,1772469047372,-209.40437684,0.0001369,2]
[407177825,1772469047382,-250.0,0.0001369,2]
[407177827,1772469047392,-250.0,0.0001369,2]
[407177829,1772469047401,-250.0,0.0001369,2]
[407177831,1772469047411,-217.15233878,0.0001369,2]
[407177833,1772469047421,-250.0,0.0001369,2]
[407177835,1772469047430,-250.0,0.0001369,2]
[407177837,1772469047442,-250.0,0.0001369,2]
[407177839,1772469047452,-225.18697532,0.0001369,2]
[407177841,1772469047462,-250.0,0.0001369,2]
[407177843,1772469047471,-250.0,0.0001369,2]
[407177845,1772469047481,-250.0,0.0001369,2]
[407177847,1772469047491,-233.51889341,0.0001369,2]
[407177849,1772469047500,-250.0,0.0001369,2]
[407177851,1772469047509,-250.0,0.0001369,2]
[407177853,1772469047518,-250.0,0.0001369,2]
[407177855,1772469047528,-250.0,0.0001369,2]
[407177857,1772469047537,-242.15909246,0.0001369,2]
[407177859,1772469047547,-250.0,0.0001369,2]
[407177861,1772469047556,-250.0,0.0001369,2]
[407177863,1772469047565,-250.0,0.0001369,2]
[407177865,1772469047574,-251.11897888,0.0001369,2]
[407177867,1772469047583,-250.0,0.0001369,2]
[407177869,1772469047593,-250.0,0.0001369,2]
[407177871,1772469047603,-250.0,0.0001369,2]
[407177873,1772469047613,-260.4103811,0.0001369,2]
[407177875,1772469047622,-250.0,0.0001369,2]
[407177877,1772469047632,-250.0,0.0001369,2]
[407177879,1772469047649,-250.0,0.0001369,2]
[407177881,1772469047659,-270.0455652,0.0001369,2]
[407177883,1772469047668,-250.0,0.0001369,2]
[407177885,1772469047678,-250.0,0.0001369,2]
[407177887,1772469047688,-280.03725112,0.0001369,2]
[407177888,1772469047697,-250.0,0.0001369,2]
[407177890,1772469047707,-260.20398362,0.0001369,2]
[407177892,1772469047717,-290.39862941,0.0001369,2]
[407177895,1772469047727,-250.0,0.0001369,2]
[407177896,1772469047738,-424.65443618,0.0001369,2]
[407177898,1772469047748,-250.0,0.0001369,2]
[407177900,1772469047757,-250.0,0.0001369,2]
[407177902,1772469047766,-250.0,0.0001369,2]
[407177904,1772469047777,-250.0,0.0001369,2]
[407177907,1772469047790,-500.0,0.00013697,2]
[407177909,1772469047799,-500.0,0.00013697,2]
[407177911,1772469047809,-494.26763033,0.00013697,2]
[407177912,1772469047819,-500.0,0.00013697,2]
[407177914,1772469047829,-500.0,0.00013697,2]
[407177916,1772469047838,-500.0,0.00013697,2]
[407177918,1772469047848,-500.0,0.00013697,2]
[407177920,1772469047857,-568.48922945,0.00013697,2]
[407177922,1772469047867,-500.0,0.00013697,2]
[407177924,1772469047876,-500.0,0.00013697,2]
[407177926,1772469047885,-500.0,0.00013697,2]
[407177928,1772469047895,-500.0,0.00013697,2]
[407177930,1772469047905,-500.0,0.00013697,2]
[407177932,1772469047915,-500.0,0.00013697,2]
[407177934,1772469047925,-500.0,0.00013697,2]
[407177936,1772469047934,-500.0,0.00013697,2]
[407177938,1772469047946,-500.0,0.00013697,2]
[407177940,1772469047956,-500.0,0.00013697,2]
[407177942,1772469047965,-500.0,0.00013697,2]
[407177944,1772469047975,-500.0,0.00013697,2]
[407177946,1772469047985,-500.0,0.00013697,2]
[407177948,1772469047994,-500.0,0.00013697,2]
[407177950,1772469048005,-500.0,0.00013697,2]
[407177952,1772469048014,-500.0,0.00013697,2]
[407177954,1772469048024,-312.23908067,0.00013697,2]
[407177956,1772469048033,-500.0,0.00013698,2]
[407177957,1772469048043,-500.0,0.00013698,2]
[407177959,1772469048052,-500.0,0.00013698,2]
[407177961,1772469048062,-500.0,0.00013698,2]
[407177963,1772469048071,-500.0,0.00013698,2]
[407177965,1772469048081,-500.0,0.00013698,2]
[407177967,1772469048099,-500.0,0.00013698,2]
[407177970,1772469048109,-500.0,0.00013698,2]
[407177972,1772469048119,-500.0,0.00013698,2]
[407177973,1772469048129,-500.0,0.00013698,2]
[407177975,1772469048139,-500.0,0.00013698,2]
[407177977,1772469048149,-27120.50346416,0.00013698,2]
[407177979,1772469048158,-500.0,0.00013698,2]
[407177981,1772469048167,-500.0,0.00013698,2]
[407177983,1772469048179,-500.0,0.00013698,2]
[407177985,1772469048189,-500.0,0.00013698,2]
[407177987,1772469048199,-500.0,0.00013698,2]
[407177989,1772469048208,-500.0,0.00013698,2]
[407177991,1772469048218,-500.0,0.00013698,2]
[407177993,1772469048227,-1017.79,0.00013698,2]
[407177995,1772469048237,-500.0,0.00013698,2]
[407177997,1772469048247,-500.0,0.00013698,2]
[407177999,1772469048257,-500.0,0.00013698,2]
[407178001,1772469048266,-500.0,0.00013698,2]
[407178003,1772469048276,-785.22,0.00013698,2]
[407178005,1772469048286,-500.0,0.00013698,2]
[407178007,1772469048295,-500.0,0.00013698,2]
[407178009,1772469048305,-513.53,0.00013698,2]
[407178011,1772469048315,-500.0,0.00013698,2]
[407178013,1772469048324,-983.99,0.00013698,2]
[407178015,1772469048334,-500.0,0.00013698,2]
[407178017,1772469048343,-500.0,0.00013698,2]
[407178019,1772469048353,-500.0,0.00013698,2]
[407178021,1772469048363,-1668.46,0.00013698,2]
[407178023,1772469048372,-503.32,0.00013698,2]
[407178025,1772469048382,-500.0,0.00013698,2]
[407178027,1772469048391,-1724.89,0.00013698,2]
[407178029,1772469048401,-500.0,0.00013698,2]
[407178031,1772469048410,-730.79,0.00013698,2]
[407178033,1772469048421,-500.0,0.00013698,2]
[407178035,1772469048431,-500.0,0.00013698,2]
[407178037,1772469048442,-580.43,0.00013698,2]
[407178038,1772469048452,-500.0,0.00013698,2]
[407178040,1772469048463,-500.0,0.00013698,2]
[407178043,1772469048473,-602.0103888,0.00013698,2]
[407178044,1772469048483,-1146.57,0.00013698,2]
[407178046,1772469048494,-500.0,0.00013698,2]
[407178048,1772469048504,-500.0,0.00013698,2]
[407178050,1772469048515,-602.38,0.00013698,2]
[407178052,1772469048524,-500.0,0.00013698,2]
[407178054,1772469048534,-500.0,0.00013698,2]
[407178056,1772469048543,-500.0,0.00013698,2]
[407178058,1772469048553,-575.57,0.00013698,2]
[407178060,1772469048563,-500.0,0.00013698,2]
[407178062,1772469048573,-500.0,0.00013698,2]
[407178064,1772469048583,-500.0,0.00013698,2]
[407178066,1772469048592,-1771.23,0.00013698,2]
[407178068,1772469048602,-707.8,0.00013698,2]
[407178070,1772469048611,-500.0,0.00013698,2]
[407178072,1772469048620,-500.0,0.00013698,2]
[407178074,1772469048630,-664.6,0.00013698,2]
[407178076,1772469048640,-500.0,0.00013698,2]
[407178078,1772469048649,-500.0,0.00013698,2]
[407178080,1772469048659,-500.0,0.00013698,2]
[407178082,1772469048670,-1042.1,0.00013698,2]
[407178084,1772469048679,-500.0,0.00013698,2]
[407178087,1772469048690,-500.0,0.00013698,2]
[407178089,1772469048700,-174.73672187,0.00013698,2]
[407178090,1772469048709,-1020.34,0.00013698,2]
[407178092,1772469048718,-500.0,0.00013698,2]
[407178094,1772469048728,-500.0,0.00013698,2]
[407178096,1772469048737,-500.0,0.00013698,2]
[407178098,1772469048748,-500.0,0.00013698,2]
[407178101,1772469048758,-500.0,0.00013698,2]
[407178103,1772469048767,-500.0,0.00013698,2]
[407178105,1772469048778,-500.0,0.00013698,2]
[407178107,1772469048787,-500.0,0.00013698,2]
[407178109,1772469048796,-328.6948686,0.00013698,2]
[407178111,1772469048806,-2597.74,0.00013698,2]
[407178112,1772469048815,-500.0,0.00013698,2]
[407178115,1772469048825,-500.0,0.00013698,2]
[407178117,1772469048839,-500.0,0.00013698,2]
[407178118,1772469048848,-500.0,0.00013698,2]
[407178120,1772469048858,-500.0,0.00013698,2]
[407178122,1772469048867,-770.43,0.00013698,2]
[407178124,1772469048876,-1786.45,0.00013698,2]
[407178126,1772469048886,-588.82,0.00013698,2]
[407178128,1772469048895,-500.0,0.00013698,2]
[407178130,1772469048904,-500.0,0.00013698,2]
[407178132,1772469048914,-500.0,0.00013698,2]
[407178134,1772469048924,-500.0,0.00013698,2]
[407178136,1772469048934,-500.0,0.00013698,2]
[407178138,1772469048944,-500.0,0.00013698,2]
[407178140,1772469048953,-536.82034735,0.00013698,2]
[407178143,1772469048972,-1142.3617184,0.00013698,2]
[407178145,1772469048984,-301.80929101,0.00013698,2]
[407178149,1772469049011,-1803.24864324,0.00013698,2]
[407178151,1772469049021,-500.0,0.00013698,2]
[407178153,1772469049030,-500.0,0.00013698,2]
[407178155,1772469049040,-1302.88,0.00013698,2]
[407178158,1772469049050,-1071.5,0.00013698,2]
[407178159,1772469049059,-500.0,0.00013698,2]
[407178161,1772469049067,-500.0,0.00013698,2]
[407178163,1772469049078,-500.0,0.00013698,2]
[407178165,1772469049088,-500.0,0.00013698,2]
[407178168,1772469049098,-533.3,0.00013698,2]
[407178169,1772469049110,-587.78,0.00013698,2]
[407178171,1772469049120,-512.77,0.00013698,2]
[407178173,1772469049129,-1428.99,0.00013698,2]
[407178175,1772469049139,-1193.9,0.00013698,2]
[407178177,1772469049150,-500.0,0.00013698,2]
[407178180,1772469049160,-288.48744316,0.00013698,2]
[407178181,1772469049169,-1680.35,0.00013698,2]
[407178183,1772469049182,-680.3,0.00013698,2]
[407178184,1772469049192,-566.31,0.00013698,2]
[407178185,1772469049201,-500.0,0.00013698,2]
[407178186,1772469049210,-3807.17,0.00013698,2]
[407178187,1772469049220,-500.0,0.00013698,2]
[407178208,1772469049454,-2092.92,0.00013698,2]
[407178210,1772469049464,-500.0,0.00013698,2]
[407178212,1772469049474,-500.0,0.00013698,2]
[407178214,1772469049483,-374.56404989,0.00013698,2]
[407178217,1772469049496,-125.43595011,0.00013698,2]
[407178219,1772469049506,-212.29235878,0.00013698,2]
[407179376,1772469063019,-827.73127372,0.00013561,2]
[407179380,1772469063042,-827.73127372,0.00013561,2]
[407179382,1772469063053,-50.36611421,0.00013561,2]
[407188406,1772469465450,1000.0,5e-08,30]
[407188407,1772469497787,1000.0,6e-08,60]
[407188504,1772470232634,-213.88,0.000112,2]
[407188506,1772470232644,-83.04009493,0.000112,2]
[407188509,1772470232671,-493.95990507,0.000112,2]
[407188511,1772470232681,-150.0,0.00011847,2]
[407188513,1772470232691,-331.6522786,0.00012431,2]
[407188515,1772470232701,-200.0,0.00013187,2]
[407188517,1772470232710,-79.25040289,0.00013249,2]
[407188519,1772470232722,-420.74959711,0.00013249,2]
[407188521,1772470232731,-194.0,0.00013272,2]
[407188523,1772470232741,-94.30040789,0.00013272,2]
[407188658,1772470238617,-205.69959211,0.00013272,2]
[407188659,1772470238627,-872.0,0.00013272,2]
[407188660,1772470238637,-221.02440063,0.00013273,2]
[407188661,1772470238647,-417.4786631,0.00013273,2]
[407188662,1772470238658,-762.60661625,0.00013273,2]
[407188663,1772470238668,-186.16977471,0.00013273,2]
[407188664,1772470238678,-500.0,0.00013273,2]
[407188665,1772470238687,-500.0,0.00013273,2]
[407188666,1772470238697,-856.32601692,0.00013273,2]
[407188667,1772470238706,-270.25473128,0.00013499,2]
[407188668,1772470238715,-500.0,0.00013499,2]
[407188669,1772470238725,-500.0,0.00013499,2]
[407188670,1772470238734,-500.0,0.00013499,2]
[407188671,1772470238744,-357.33809351,0.00013499,2]
[407188672,1772470238754,-632.56458284,0.00013499,2]
[407188673,1772470238764,-500.0,0.00013499,2]
[407188674,1772470238950,-500.0,0.00013499,2]
[407188675,1772470239025,-500.0,0.00013499,2]
[407188676,1772470239035,-500.0,0.00013499,2]
[407188677,1772470239045,-500.0,0.00013499,2]
[407188678,1772470239055,-500.0,0.00013499,2]
[407188679,1772470239065,-166.95014545,0.00013499,2]
[407188680,1772470239074,-500.0,0.00013499,2]
[407188681,1772470239084,-500.0,0.00013499,2]
[407188682,1772470239093,-500.0,0.00013499,2]
[407188683,1772470239103,-500.0,0.00013499,2]
[407188684,1772470239113,-370.34710938,0.00013499,2]
[407188685,1772470239122,-500.0,0.00013499,2]
[407188686,1772470239132,-500.0,0.00013499,2]
[407188687,1772470239142,-500.0,0.00013499,2]
[407188688,1772470239151,-500.0,0.00013499,2]
[407188689,1772470239161,-500.0,0.00013499,2]
[407188690,1772470239171,-500.0,0.00013499,2]
[407188691,1772470239180,-500.0,0.00013499,2]
[407188692,1772470239189,-500.0,0.00013499,2]
[407188693,1772470239198,-518.12018477,0.00013499,2]
[407188694,1772470239208,-500.0,0.00013499,2]
[407188695,1772470239217,-500.0,0.00013499,2]
[407188696,1772470239227,-500.0,0.00013499,2]
[407188697,1772470239237,-500.0,0.00013499,2]
[407188698,1772470239247,-500.0,0.00013499,2]
[407188699,1772470239256,-4799.71238523,0.000135,2]
[407188700,1772470239265,-648.7360376,0.000135,2]
[407188776,1772470241102,-500.0,0.00013499,2]
[407188778,1772470241112,-3242.54582638,0.000135,2]
[407188791,1772470241230,-4597.0800858,0.000135,2]
[407188793,1772470241240,-9530.65719341,0.000135,2]
[407188795,1772470241250,-11422.31349301,0.000135,2]
[407188797,1772470241260,-2185.31852748,0.00013561,2]
[407188799,1772470241269,-254.63070031,0.00013597,2]
[407189019,1772470243324,-70.30304709,0.00013597,2]
[407189021,1772470243334,-1014.48451749,0.00013598,2]
[407189024,1772470243347,-437.94669,0.00013598,2]
[407189026,1772470243358,-1297.21331,0.00013598,2]
[407189028,1772470243369,-3101.72326705,0.00013598,2]
[407189280,1772470246146,-1245.14528569,0.00013598,2]
[407189283,1772470246163,-8422.65712817,0.00013598,2]
[407189286,1772470246188,-409.22652235,0.00013598,2]
[407191320,1772470268676,-150.0,0.00014,20]
[407196492,1772470808123,154.48,9.5e-05,2]
[407196493,1772470809215,154.48,9.6e-05,2]
[407196494,1772470809696,154.48,9.7e-05,2]
[407196495,1772470810718,154.48,9.8e-05,2]
[407196496,1772470810892,154.48,9.9e-05,2]
[407196497,1772470811899,154.48,0.0001,2]
[407196498,1772470843465,-21.65,0.000101,2]
[407196499,1772470851176,701.26946022,0.0001001,2]
[407196500,1772470887318,3334.58111547,0.0001001,2]
[407196501,1772470902871,2701.95410105,0.0001001,2]
[407196507,1772471408496,166.37,9.5e-05,2]
[407196508,1772471409104,166.37,9.7e-05,2]
[407196509,1772471410089,166.37,9.9e-05,2]
[407196543,1772471432093,-132.83,0.000101,2]
[407196545,1772471432102,-537.97634108,0.000101,2]
[407196546,1772471432115,-24.02365892,0.000101,2]
[407196547,1772471432126,-166.37,0.000101,2]
[407196548,1772471432136,-150.0,0.00010125,2]
[407196550,1772471432145,-114.80953469,0.000102,2]
[407196554,1772471436232,5000.0,0.0001001,2]
[407196776,1772471440600,-39.67046531,0.000102,2]
[407196778,1772471440610,-200.0,0.00010255,2]
[407196780,1772471440622,-154.48,0.000103,2]
[407196782,1772471440632,-166.37,0.000103,2]
[407196784,1772471440644,-89.47953469,0.000105,2]
[407196786,1772471440656,-65.00046531,0.000105,2]
[407196788,1772471440666,-166.37,0.000105,2]
[407196790,1772471440676,-177.0,0.00012125,2]
[407196792,1772471440686,-1201.53130307,0.0001255,3]
[407196794,1772471440697,-169.3784659,0.0001261,2]
[407196796,1772471440707,-304.57635737,0.0001261,2]
[407196799,1772471440717,-1620.52923472,0.00013265,2]
[407196968,1772471443236,-777.88270558,0.00013265,2]
[407196970,1772471443246,-300.0,0.00013272,2]
[407196972,1772471443255,-500.0,0.00013273,2]
[407196974,1772471443265,-619.87741728,0.00013273,2]
[407196976,1772471443274,-500.0,0.00013273,2]
[407196978,1772471443284,-273.0552736,0.00013273,2]
[407196980,1772471443294,-491.49949247,0.00013273,2]
[407196982,1772471443303,-873.7768755,0.00013273,2]
[407196984,1772471443313,-1365.27636798,0.00013273,2]
[407196986,1772471443322,-1964.03197191,0.00013273,2]
[407196988,1772471443332,-500.0,0.00013288,2]
[407196990,1772471443342,-1252.13631349,0.00013314,2]
[407197332,1772471446890,-135.86368651,0.00013314,2]
[407197334,1772471446900,-636.0,0.00013314,2]
[407197336,1772471446909,-432.0,0.00013314,2]
[407197338,1772471446918,-730.0,0.00013314,2]
[407197340,1772471446930,-2963.0269674,0.00013597,2]
[407197342,1772471446940,-3525.76871239,0.00013598,2]
[407199464,1772471632966,208.91122613,0.0001,2]
[407199465,1772471688128,162.61,0.000158,120]
[407199512,1772472632295,-365.26321119,0.00011388,2]
[407199513,1772472632316,-700.499995,0.00011388,2]
[407199514,1772472632327,-3934.23679381,0.00011388,2]
[407199515,1772472632336,-580.0,0.00011388,2]
[407199516,1772472632345,-150.0,0.00011446,2]
[407199517,1772472632353,-300.0,0.00011502,2]
[407199518,1772472632362,-149.84138767,0.00011503,2]
[407199545,1772472638497,-5000.0,0.00011388,2]
[407199546,1772472638509,-200.0,0.00011933,2]
[407199547,1772472638518,-188.5276332,0.00012131,2]
[407199548,1772472638527,-218.81526762,0.00012362,2]
[407199549,1772472638536,-393.86748171,0.00012362,2]
[407199550,1772472638546,-700.20885638,0.00012362,2]
[407199551,1772472638555,-1094.07633809,0.00012362,2]
[407199552,1772472638565,-1573.89445692,0.00012362,2]
[407199553,1772472638574,-420.0,0.00012633,2]
[407199554,1772472638583,-500.0,0.00013011,2]
[407199555,1772472638592,-500.0,0.00013011,2]
[407199556,1772472638601,-500.0,0.00013011,2]
[407199557,1772472638610,-500.0,0.00013011,2]
[407199558,1772472638620,-500.0,0.00013011,2]
[407199559,1772472638629,-500.0,0.00013011,2]
[407199561,1772472638641,-589.17588287,0.00013011,2]
[407199562,1772472638649,-500.0,0.00013011,2]
[407199563,1772472638658,-500.0,0.00013011,2]
[407199564,1772472638668,-500.0,0.00013011,2]
[407199565,1772472638677,-500.0,0.00013011,2]
[407199566,1772472638686,-213.2694631,0.00013011,2]
[407199567,1772472638695,-500.0,0.00013011,2]
[407199568,1772472638704,-500.0,0.00013011,2]
[407199569,1772472638713,-500.0,0.00013011,2]
[407199570,1772472638722,-500.0,0.00013011,2]
[407199571,1772472638731,-500.0,0.00013011,2]
[407199572,1772472638740,-500.0,0.00013011,2]
[407199573,1772472638749,-232.81986,0.00013011,2]
[407199574,1772472638758,-500.0,0.00013011,2]
[407199575,1772472638767,-500.0,0.00013011,2]
[407199576,1772472638776,-500.0,0.00013011,2]
[407199577,1772472638785,-500.0,0.00013011,2]
[407199578,1772472638794,-500.0,0.00013011,2]
[407199579,1772472638803,-500.0,0.00013011,2]
[407199580,1772472638812,-500.0,0.00013011,2]
[407199582,1772472638821,-500.0,0.00013011,2]
[407199584,1772472638831,-201.08975236,0.00013011,2]
[407199586,1772472638841,-500.0,0.00013011,2]
[407199588,1772472638850,-500.0,0.00013011,2]
[407199590,1772472638860,-500.0,0.00013011,2]
[407199592,1772472638870,-500.0,0.00013011,2]
[407199594,1772472638880,-473.9917235,0.00013013,2]
[407199596,1772472638891,-853.1851023,0.00013013,2]
[407199598,1772472638901,-1516.7735152,0.00013013,2]
[407199600,1772472638910,-2369.9586175,0.00013013,2]
[407199602,1772472638920,-3412.7404092,0.00013013,2]
[407199604,1772472638929,-627.73533224,0.00013118,3]
[407199606,1772472638939,-158.24,0.00013207,2]
[407199608,1772472638947,-2398.4119403,0.00013256,2]
[407199610,1772472638957,-151.0,0.00013265,2]
[407199611,1772472638966,-151.0,0.00013265,2]
[407199613,1772472638975,-151.0,0.00013265,2]
[407199616,1772472638985,-157.40819191,0.00013273,2]
[407199618,1772472638996,-500.0,0.00013273,2]
[407199619,1772472639005,-500.0,0.00013273,2]
[407199621,1772472639014,-500.0,0.00013273,2]
[407199623,1772472639024,-500.0,0.00013294,2]
[407199625,1772472639033,-1371.997927,0.00013359,2]
[407199627,1772472639042,-1445.2831946,0.00013359,2]
[407199629,1772472639052,-158.29282853,0.000134,2]
[407199631,1772472639061,-177.0,0.00013446,2]
[407199633,1772472639076,-158.2928285,0.00013466,2]
[407199635,1772472639086,-880.9073677,0.000135,3]
[407199637,1772472639097,-1954.06956913,0.000135,3]
[407199668,1772472639396,-1635.45673745,0.000135,3]
[407199670,1772472639405,-1460.69712134,0.000135,3]
[407199671,1772472639414,-151.0,0.000135,2]
[407199674,1772472639426,-151.0,0.000135,2]
[407199676,1772472639436,-151.0,0.000135,2]
[407199678,1772472639448,-1254.07030245,0.00013523,3]
[407199680,1772472639458,-158.2928285,0.00013532,2]
[407199682,1772472639468,-422.79482955,0.00013552,2]
[407199684,1772472639477,-599.60298507,0.00013553,2]
[407199686,1772472639486,-496.47127164,0.00013553,2]
[407199688,1772472639495,-181.08010149,0.00013553,2]
[407199690,1772472639504,-187.78006525,0.00013553,2]
[407199691,1772472639514,-194.72792766,0.00013553,2]
[407199693,1772472639524,-201.93286099,0.00013553,2]
[407199695,1772472639533,-209.40437684,0.00013553,2]
[407199697,1772472639542,-217.15233878,0.00013553,2]
[407199699,1772472639552,-225.18697532,0.00013553,2]
[407199701,1772472639560,-233.51889341,0.00013553,2]
[407199703,1772472639570,-242.15909246,0.00013553,2]
[407199705,1772472639579,-251.11897888,0.00013553,2]
[407199707,1772472639588,-260.4103811,0.00013553,2]
[407199709,1772472639598,-250.0,0.00013553,2]
[407199711,1772472639606,-270.0455652,0.00013553,2]
[407199713,1772472639617,-250.0,0.00013553,2]
[407199715,1772472639627,-280.03725112,0.00013553,2]
[407199717,1772472639635,-250.0,0.00013553,2]
[407199719,1772472639645,-224.48120908,0.00013553,2]
[407199721,1772472639654,-250.0,0.00013553,2]
[407199723,1772472639663,-250.0,0.00013553,2]
[407199725,1772472639672,-250.0,0.00013553,2]
[407199727,1772472639682,-500.0,0.00013553,2]
[407199729,1772472639691,-250.0,0.00013553,2]
[407199731,1772472639700,-500.0,0.00013553,2]
[407199733,1772472639710,-250.0,0.00013553,2]
[407199735,1772472639720,-500.0,0.00013553,2]
[407199737,1772472639728,-250.0,0.00013553,2]
[407199739,1772472639738,-500.0,0.00013553,2]
[407199741,1772472639747,-250.0,0.00013553,2]
[407199743,1772472639756,-500.0,0.00013553,2]
[407199745,1772472639765,-500.0,0.00013553,2]
[407199747,1772472639775,-500.0,0.00013553,2]
[407199749,1772472639784,-206.53762152,0.00013553,2]
[407199751,1772472639794,-250.0,0.00013553,2]
[407199753,1772472639803,-250.0,0.00013553,2]
[407199755,1772472639812,-250.0,0.00013553,2]
[407199757,1772472639823,-250.0,0.00013553,2]
[407199759,1772472639832,-250.0,0.00013553,2]
[407199761,1772472639842,-151.0,0.00013553,2]
[407199763,1772472639851,-151.0,0.00013553,2]